bitfinex/quotes_SOLUSD_20240902
["timestamp","ask_amount","ask_price","bid_price","bid_amount"]
[1725246197897,9.1551,130.64,130.58,1.53138411]
[1725246198209,7.6552,130.63,130.58,9.18918411]
[1725246198420,45.87830973,130.65,130.58,1.53138411]
[1725246198596,7.6546,130.64,130.6,7.6568]
[1725246199106,9.1535,130.66,130.61,7.6561]
[1725246199303,9.1535,130.66,130.6,26.7985]
[1725246199304,7.6542,130.65,130.6,26.7985]
[1725246199508,9.1548,130.64,130.6,19.1417]
[1725246199716,7.6552,130.63,130.58,7.6576]
[1725246199912,7.6552,130.63,130.58,9.18884308]
[1725246200795,7.6552,130.63,130.58,7.6576]
[1725246200993,1.5,130.64,130.59,7.6571]
[1725246200994,7.6546,130.64,130.59,7.6571]
[1725246201228,9.1546,130.64,130.59,7.6571]
[1725246202800,7.6555,130.63,130.58,7.658]
[1725246203018,1.5,130.64,130.57,19.1461]
[1725246203204,7.6559,130.62,130.57,26.8047]
[1725246204289,9.1559,130.62,130.57,26.8047]
[1725246204915,9.1559,130.62,130.54,19.1504]
[1725246204916,7.6587,130.58,130.54,19.1504]
[1725246205224,9.1588,130.57,130.52,7.6615]
[1725246205592,7.6593,130.56,130.51,19.1548]
[1725246205815,1.5,130.57,130.51,19.1548]
[1725246205816,1.5,130.55,130.51,19.1548]
[1725246206008,39.58860973,130.57,130.51,19.1548]
[1725246206313,7.6594,130.56,130.51,26.817]
[1725246206622,7.6594,130.56,130.52,7.6615]
[1725246207311,39.58860973,130.57,130.52,7.6615]
[1725246207312,7.6588,130.57,130.52,7.6615]
[1725246207519,7.6588,130.57,130.53,1.53193121]
[1725246207712,7.6594,130.56,130.52,7.6615]
[1725246208816,9.1599,130.55,130.51,19.1548]
[1725246209393,41.08860973,130.55,130.48,19.1595]
[1725246209599,7.6619,130.52,130.48,19.1595]
[1725246210105,7.6611,130.53,130.48,19.1595]
[1725246210836,9.1605,130.54,130.49,7.6633]
[1725246211052,7.6611,130.53,130.49,7.6633]
[1725246211208,1.5,130.52,130.48,19.1595]
[1725246211718,9.1611,130.53,130.48,26.8234]
[1725246212021,7.6623,130.51,130.47,7.6645]
[1725246212636,7.6623,130.51,130.46,7.665]
[1725246213235,7.6623,130.51,130.45,19.1635]
[1725246213236,1.5,130.5,130.45,19.1635]
[1725246213534,39.58860973,130.49,130.41,280.5982]
[1725246213739,39.58860973,130.47,130.41,19.1688]
[1725246213914,1.5,130.46,130.41,19.1688]
[1725246214339,39.58860973,130.47,130.41,19.1688]
[1725246214642,8.5525262,130.46,130.41,26.8368]
[1725246214942,7.6658,130.45,130.41,19.1688]
[1725246215143,7.6658,130.45,130.38,19.1745]
[1725246215144,7.6679,130.42,130.38,19.1745]
[1725246215324,8.5550262,130.41,130.35,19.1785]
[1725246215530,7.6687,130.4,130.35,19.1785]
[1725246215727,39.58860973,130.43,130.35,19.1785]
[1725246215927,7.667,130.43,130.38,7.6698]
[1725246216437,0.8869262,130.42,130.37,7.6703]
[1725246216735,0.8869262,130.42,130.38,7.6697]
[1725246216937,8.5539262,130.43,130.38,7.6697]
[1725246217639,7.667,130.43,130.38,7.6697]
[1725246220532,0.8869262,130.42,130.38,7.6697]
[1725246220736,7.667,130.43,130.38,7.6697]
[1725246221448,6.3799,130.46,130.41,7.6679]
[1725246221638,6.3799,130.46,130.42,1.53327354]
[1725246221639,14.0451,130.46,130.42,1.53327354]
[1725246221839,6.9238262,130.5,130.47,7.6641]
[1725246222031,14.5866262,130.5,130.46,19.1617]
[1725246222446,7.6634,130.49,130.46,19.1617]
[1725246222621,6.9238262,130.5,130.46,19.1617]
[1725246222827,0.8869262,130.5,130.46,19.1617]
[1725246223235,0.8869262,130.51,130.46,19.1617]
[1725246223650,0.8869262,130.52,130.47,7.6645]
[1725246224035,0.8869262,130.52,130.46,19.1617]
[1725246225040,0.8869262,130.52,130.48,7.6638]
[1725246225449,7.5311262,130.53,130.49,7.6632]
[1725246225939,0.8869262,130.53,130.49,7.6632]
[1725246226530,8.5480262,130.53,130.48,7.6639]
[1725246226734,39.58860973,130.55,130.49,7.6633]
[1725246226735,8.5474262,130.54,130.49,7.6633]
[1725246226937,8.5474262,130.54,130.5,1.53235679]
[1725246227137,8.5474262,130.54,130.49,7.6633]
[1725246227647,7.6613,130.53,130.48,19.1589]
[1725246227852,0.8869262,130.52,130.48,19.1589]
[1725246228851,0.8869262,130.52,130.43,77.92290973]
[1725246228852,7.6624,130.51,130.46,7.6647]
[1725246229048,8.5497262,130.5,130.46,7.6647]
[1725246229433,0.8869262,130.5,130.46,7.6647]
[1725246229633,0.8869262,130.5,130.42,19.1683]
[1725246230065,7.6647,130.47,130.42,19.1683]
[1725246230435,7.6641,130.48,130.43,7.6669]
[1725246230637,7.5393262,130.5,130.42,26.8357]
[1725246230638,8.5516262,130.47,130.42,26.8357]
[1725246230853,8.5516262,130.47,130.43,7.6669]
[1725246231089,8.5509262,130.48,130.43,7.6669]
[1725246231262,7.6652,130.46,130.42,7.6674]
[1725246231556,7.6647,130.47,130.41,19.1694]
[1725246231737,0.8869262,130.46,130.42,7.667]
[1725246231934,0.8869262,130.46,130.39,44.8714]
[1725246231935,0.8869262,130.48,130.45,7.6657]
[1725246232632,0.8869262,130.49,130.45,7.6657]
[1725246233050,14.3155,130.5,130.47,7.6644]
[1725246233051,0.8869262,130.5,130.47,7.6644]
[1725246233354,0.8869262,130.5,130.46,26.8265]
[1725246233579,0.8869262,130.5,130.47,7.6644]
[1725246234252,0.8869262,130.51,130.47,9.19711534]
[1725246234451,0.8869262,130.51,130.47,7.6644]
[1725246234651,8.5492262,130.51,130.47,7.6644]
[1725246234848,7.6631,130.5,130.46,19.1615]
[1725246235055,0.8869262,130.49,130.46,19.1615]
[1725246235249,0.8869262,130.49,130.43,19.1666]
[1725246235452,7.6645,130.48,130.43,26.8333]
[1725246235633,0.8869262,130.47,130.43,26.8333]
[1725246235839,8.5516262,130.47,130.43,26.8333]
[1725246236444,0.8869262,130.47,130.39,6.5251]
[1725246236647,7.6663,130.44,130.39,26.8416]
[1725246236851,7.6658,130.45,130.41,7.668]
[1725246237053,7.6658,130.45,130.4,7.6685]
[1725246237254,7.1010262,130.47,130.42,7.6669]
[1725246237562,6.2141,130.5,130.47,7.6645]
[1725246237741,7.1010262,130.5,130.46,7.6651]
[1725246237942,13.8769,130.5,130.45,26.8291]
[1725246238343,8.5503262,130.49,130.45,26.8291]
[1725246238558,8.5503262,130.49,130.45,19.1635]
[1725246238757,7.6634,130.49,130.45,26.8291]
[1725246238957,0.8869262,130.48,130.45,19.1635]
[1725246239556,0.8869262,130.53,130.46,1.53290655]
[1725246239764,7.6612,130.53,130.48,26.8233]
[1725246239954,0.8869262,130.52,130.48,26.8233]
[1725246240153,7.6606,130.54,130.49,7.663]
[1725246240341,0.8869262,130.53,130.49,7.663]
[1725246240542,0.8869262,130.53,130.48,19.1595]
[1725246240743,0.8869262,130.55,130.49,1.53241617]
[1725246240954,0.8869262,130.54,130.49,1.53241617]
[1725246241457,8.5468262,130.55,130.5,7.6623]
[1725246241664,45.80270973,130.56,130.45,19.1639]
[1725246241665,40.47553593,130.54,130.45,19.1639]
[1725246241870,6.2141,130.56,130.49,19.1574]
[1725246241871,7.1010262,130.56,130.49,19.1574]
[1725246242163,38.2817,130.62,130.56,19.1472]
[1725246242164,6.4132,130.59,130.56,19.1472]
[1725246242342,6.4132,130.59,130.54,7.6599]
[1725246242343,0.8869262,130.58,130.54,7.6599]
[1725246242537,16.2984,130.62,130.54,7.6599]
[1725246242538,0.8869262,130.67,130.54,45.65140973]
[1725246242763,0.8869262,130.67,130.6,7.6569]
[1725246242764,7.6539,130.66,130.6,7.6569]
[1725246242958,0.8869262,130.65,130.59,19.1426]
[1725246243265,31.9719,130.75,130.67,7.6528]
[1725246243266,0.8869262,130.71,130.67,7.6528]
[1725246243571,46.00180973,130.75,130.67,7.6528]
[1725246243572,53.65040973,130.75,130.69,7.6516]
[1725246243869,0.8869262,130.74,130.69,7.6516]
[1725246244169,0.8869262,130.74,130.67,19.1318]
[1725246244170,0.8869262,130.74,130.7,7.651]
[1725246244351,0.8869262,130.74,130.68,7.6517]
[1725246244552,0.8869262,130.79,130.71,39.58860973]
[1725246244764,0.8869262,130.82,130.72,46.52937392]
[1725246244963,0.8869262,130.82,130.72,45.0]
[1725246245157,39.58860973,130.86,130.73,41.1179706]
[1725246245369,0.8869262,130.89,130.8,58.70070973]
[1725246245565,6.4132,130.95,130.76,39.58860973]
[1725246245566,0.8869262,130.94,130.82,39.58860973]
[1725246245770,16.2984,130.98,130.87,19.1024]
[1725246246071,0.8869262,130.97,130.91,19.097]
[1725246246252,0.9869262,131.0,130.92,1.31144426]
[1725246246453,0.9869262,131.0,130.91,19.097]
[1725246246454,47.17422144,130.99,130.91,19.097]
[1725246246772,0.9869262,131.0,130.91,19.097]
[1725246246773,0.8869262,130.98,130.91,19.097]
[1725246246951,0.8869262,130.99,130.92,1.52776901]
[1725246247140,0.1,131.0,130.94,26.729]
[1725246248044,0.1,131.0,130.88,47.17422144]
[1725246248045,7.6349,130.98,130.9,7.6391]
[1725246248245,8.6207262,131.0,130.9,1.52749839]
[1725246248468,8.6207262,131.0,130.9,45.0]
[1725246248843,8.6207262,131.0,130.89,19.0988]
[1725246248844,47.17422144,130.97,130.89,19.0988]
[1725246249050,0.8869262,130.96,130.84,19.1066]
[1725246249441,47.17422144,130.94,130.84,19.1066]
[1725246249658,0.8869262,130.93,130.84,19.1066]
[1725246250268,7.6392,130.91,130.84,19.1066]
[1725246250478,47.17422144,130.89,130.78,19.1147]
[1725246250655,7.6421,130.86,130.78,19.1147]
[1725246250856,0.8869262,130.85,130.78,26.7609]
[1725246251057,8.5278262,130.88,130.78,19.1147]
[1725246251256,0.8869262,130.88,130.82,7.6438]
[1725246251665,0.8869262,130.89,130.82,7.6438]
[1725246252065,8.5271262,130.89,130.8,7.6448]
[1725246252369,0.8869262,130.89,130.8,7.6448]
[1725246253070,48.06114764,130.89,130.79,1.5284818]
[1725246253381,48.06114764,130.89,130.76,7.6473]
[1725246253382,47.17422144,130.86,130.76,7.6473]
[1725246253546,0.8869262,130.85,130.74,19.1217]
[1725246253858,7.6447,130.81,130.75,7.648]
[1725246254181,7.6458,130.79,130.74,19.1217]
[1725246254353,7.6451,130.81,130.74,26.7703]
[1725246254551,0.8869262,130.8,130.75,1.52928256]
[1725246254756,19.1037,130.87,130.75,1.52928256]
[1725246254757,0.8869262,130.86,130.75,1.52928256]
[1725246254967,0.8869262,130.87,130.81,7.6441]
[1725246255174,0.8869262,130.87,130.82,1.528534]
[1725246255353,0.8869262,130.9,130.83,7.6434]
[1725246255674,6.4094,130.93,130.84,9.17106448]
[1725246255675,0.8869262,130.92,130.84,9.17106448]
[1725246255874,7.6389,130.91,130.85,7.6422]
[1725246256059,8.5265262,130.9,130.83,26.7508]
[1725246256759,8.5265262,130.9,130.83,19.1078]
[1725246256760,7.64,130.89,130.83,19.1078]
[1725246257663,6.4094,130.93,130.84,46.52824659]
[1725246257975,34.6405,130.95,130.76,90.41072144]
[1725246257976,0.8869262,130.92,130.79,19.1138]
[1725246258169,0.8869262,130.92,130.8,46.77920837]
[1725246258170,7.6393,130.91,130.8,46.77920837]
[1725246258354,7.6403,130.89,130.82,26.753]
[1725246258558,0.8869262,130.88,130.82,19.1093]
[1725246258783,0.8869262,130.92,130.82,19.1093]
[1725246258958,0.8869262,130.92,130.83,46.52828236]
[1725246259156,0.8869262,130.92,130.86,7.6412]
[1725246259352,47.17422144,130.95,130.82,47.17422144]
[1725246259575,47.17422144,130.93,130.81,26.7551]
[1725246259785,0.8869262,130.92,130.81,26.7551]
[1725246260163,0.8869262,130.92,130.81,19.1109]
[1725246260461,7.64,130.89,130.83,7.6433]
[1725246260676,7.64,130.89,130.84,1.52814855]
[1725246261159,7.6394,130.9,130.84,7.6427]
[1725246261355,0.8869262,130.92,130.87,7.641]
[1725246261581,0.8869262,130.96,130.88,1.52786959]
[1725246261782,0.8869262,130.95,130.88,1.52786959]
[1725246262284,7.6377,130.93,130.88,1.52786959]
[1725246262480,0.8869262,130.92,130.87,7.641]
[1725246262678,7.6368,130.95,130.88,46.52785629]
[1725246262878,7.6368,130.95,130.88,45.0]
[1725246263183,7.6366,130.95,130.9,7.6393]
[1725246263382,7.6366,130.95,130.9,9.16668998]
[1725246263557,7.6366,130.95,130.9,7.6393]
[1725246263877,7.6378,130.93,130.87,19.1022]
[1725246264055,7.6394,130.9,130.83,19.108]
[1725246264375,47.17422144,130.95,130.75,5.0]
[1725246264376,0.8869262,130.89,130.79,19.1137]
[1725246264784,45.12549,130.94,130.78,47.17422144]
[1725246264785,0.8869262,130.9,130.82,19.1101]
[1725246264979,66.26792144,130.94,130.82,19.1101]
[1725246264980,20.8869262,130.93,130.82,19.1101]
[1725246265283,7.6407,130.88,130.82,19.1101]
[1725246265471,7.6418,130.86,130.8,7.6447]
[1725246265656,19.0971,130.91,130.78,66.28892144]
[1725246265657,0.8869262,130.85,130.78,19.1147]
[1725246265862,7.6424,130.85,130.8,7.6452]
[1725246266083,7.6417,130.87,130.81,1.52859722]
[1725246266583,20.0,130.89,130.79,7.6458]
[1725246266873,7.6429,130.84,130.78,19.1147]
[1725246267079,7.6429,130.84,130.79,1.52881318]
[1725246267286,7.6429,130.84,130.78,26.761]
[1725246267677,7.6429,130.84,130.79,7.6457]
[1725246267878,0.8869262,130.83,130.78,19.1147]
[1725246268266,7.6429,130.84,130.79,1.52886723]
[1725246268471,0.8869262,130.87,130.79,1.52886723]
[1725246268677,38.1842,130.95,130.82,47.17422144]
[1725246268678,0.8869262,130.91,130.82,47.17422144]
[1725246268886,47.17422144,130.95,130.82,47.17422144]
[1725246268887,0.8869262,130.94,130.82,47.17422144]
[1725246269379,0.8869262,130.94,130.8,47.17422144]
[1725246269582,7.6394,130.9,130.84,26.749]
[1725246269967,47.17422144,130.93,130.84,19.1067]
[1725246270282,7.6389,130.91,130.84,26.749]
[1725246270482,0.8869262,130.94,130.84,19.1067]
[1725246270684,7.6383,130.92,130.86,7.6412]
[1725246271184,8.5257262,130.91,130.86,7.6412]
[1725246271483,7.6396,130.9,130.85,7.642]
[1725246271781,7.6388,130.91,130.86,7.6414]
[1725246273174,7.6383,130.92,130.87,9.16901671]
[1725246273376,0.8869262,130.91,130.84,19.1067]
[1725246273589,20.8869262,130.94,130.84,19.1067]
[1725246274192,20.8869262,130.94,130.81,19.1112]
[1725246274193,66.26952144,130.93,130.81,19.1112]
[1725246274492,7.64,130.89,130.84,7.6427]
[1725246274864,7.64,130.89,130.85,1.52816335]
[1725246275278,7.64,130.89,130.84,7.6427]
[1725246276072,7.6395,130.9,130.85,7.6423]
[1725246276881,7.6395,130.9,130.86,1.52799315]
[1725246277064,7.6395,130.9,130.85,7.6423]
[1725246277268,7.6388,130.91,130.86,9.16970186]
[1725246277470,0.8869262,130.95,130.86,1.52800186]
[1725246277664,20.8869262,130.95,130.86,46.52800186]
[1725246277870,20.8869262,130.95,130.87,7.6406]
[1725246277871,7.6387,130.92,130.87,7.6406]
[1725246279092,7.6387,130.92,130.88,1.52788747]
[1725246279295,7.6387,130.92,130.87,7.6406]
[1725246279504,8.5240262,130.94,130.89,7.6398]
[1725246279674,0.8869262,130.98,130.9,1.52748564]
[1725246279872,7.6364,130.96,130.91,7.6387]
[1725246280182,7.6366,130.95,130.91,7.6387]
[1725246281176,0.8869262,130.94,130.86,19.104]
[1725246281375,7.6387,130.92,130.87,7.6406]
[1725246281871,7.6387,130.92,130.86,19.104]
[1725246281872,7.6369,130.95,130.89,19.0998]
[1725246282078,0.8869262,130.98,130.9,1.5273881]
[1725246282288,14.9471262,130.99,130.94,7.637]
[1725246282589,0.1,131.0,130.97,7.6353]
[1725246282792,0.1,131.0,130.98,1.52670631]
[1725246283187,0.1,131.0,130.96,26.7254]
[1725246283572,7.6342,130.99,130.94,7.6365]
[1725246283773,7.6349,130.98,130.93,19.0936]
[1725246283974,7.6349,130.98,130.94,7.637]
[1725246284188,7.6349,130.98,130.93,26.7311]
[1725246285209,7.6349,130.98,130.89,53.22932144]
[1725246285210,0.8869262,130.97,130.91,1.52716275]
[1725246285373,7.6372,130.94,130.88,7.6404]
[1725246285573,7.6366,130.95,130.84,47.17422144]
[1725246285819,7.6359,130.96,130.87,38.2056]
[1725246285977,7.6359,130.96,130.91,7.6383]
[1725246286176,0.8869262,130.98,130.88,47.17422144]
[1725246286499,0.9869262,131.0,130.92,19.0946]
[1725246286672,0.9869262,131.0,130.89,19.0994]
[1725246286877,47.17422144,130.99,130.89,19.0994]
[1725246287098,0.8869262,130.98,130.9,45.0]
[1725246287601,0.8869262,130.98,130.89,19.0994]
[1725246287782,7.6382,130.92,130.88,7.6404]
[1725246287976,7.6389,130.91,130.86,26.7451]
[1725246288275,7.6377,130.93,130.86,19.1039]
[1725246288497,7.6387,130.92,130.86,26.7452]
[1725246290081,7.6391,130.91,130.86,26.7452]
[1725246290277,16.4241,130.98,130.82,19.1088]
[1725246290278,0.8869262,130.9,130.82,19.1088]
[1725246290501,7.6412,130.87,130.82,19.1088]
[1725246290791,7.6412,130.87,130.82,26.7524]
[1725246291590,7.6427,130.85,130.8,7.6449]
[1725246292091,7.6429,130.84,130.79,26.7596]
[1725246292289,0.8869262,130.89,130.75,19.1204]
[1725246292290,19.1044,130.86,130.75,19.1204]
[1725246292479,0.8869262,130.85,130.75,19.1204]
[1725246293186,7.6449,130.81,130.76,7.6475]
[1725246293392,7.6434,130.84,130.78,7.6463]
[1725246293607,7.6436,130.83,130.77,19.1162]
[1725246294697,7.643,130.84,130.78,52.6459]
[1725246294931,8.5305262,130.83,130.78,7.6459]
[1725246295210,7.6436,130.83,130.78,7.6459]
[1725246295391,7.6436,130.83,130.74,6.3323]
[1725246295392,19.1051,130.86,130.74,25.4538]
[1725246295598,7.6447,130.81,130.76,7.6475]
[1725246296314,7.6447,130.81,130.77,7.647]
[1725246296490,7.6439,130.83,130.77,7.647]
[1725246297299,6.287,130.85,130.76,19.1179]
[1725246297504,7.6435,130.83,130.78,19.1151]
[1725246297703,7.6441,130.82,130.79,1.52887172]
[1725246297888,7.6441,130.82,130.78,19.1151]
[1725246301203,7.6411,130.87,130.82,7.6439]
[1725246301395,7.6428,130.85,130.8,26.7573]
[1725246301700,7.6437,130.83,130.78,7.6463]
[1725246302032,0.8869262,130.83,130.77,19.1168]
[1725246302309,7.6424,130.85,130.8,7.6451]
[1725246302902,0.8869262,130.87,130.81,7.6445]
[1725246303301,0.8869262,130.87,130.79,19.1138]
[1725246303501,7.6427,130.85,130.8,7.645]
[1725246303706,0.8869262,130.84,130.79,19.1138]
[1725246304012,0.8869262,130.87,130.79,19.1138]
[1725246304195,7.643,130.84,130.79,26.7591]
[1725246304396,0.8869262,130.83,130.78,7.6464]
[1725246304598,0.8869262,130.85,130.78,7.6464]
[1725246304815,0.8869262,130.85,130.77,7.6468]
[1725246305402,7.6445,130.82,130.77,7.6468]
[1725246306025,0.8869262,130.81,130.71,39.40903673]
[1725246306226,0.8869262,130.81,130.73,26.7716]
[1725246306227,7.6464,130.78,130.73,26.7716]
[1725246306515,7.647,130.77,130.73,19.1226]
[1725246306715,7.6476,130.76,130.7,57.3818]
[1725246307024,0.8869262,130.78,130.71,7.65]
[1725246307203,7.6477,130.76,130.71,7.65]
[1725246307401,0.8869262,130.75,130.67,19.1316]
[1725246307712,25.6394,130.79,130.67,19.1316]
[1725246307713,7.6506,130.71,130.67,19.1316]
[1725246308900,40.29596293,130.76,130.67,19.1316]
[1725246309110,40.29596293,130.76,130.68,1.53029827]
[1725246309310,40.29596293,130.76,130.69,19.1279]
[1725246309311,0.8869262,130.76,130.69,19.1279]
[1725246309628,8.5350262,130.76,130.7,9.18027885]
[1725246309832,0.8869262,130.76,130.69,19.1279]
[1725246310339,39.40903673,130.74,130.66,19.1331]
[1725246310539,0.8869262,130.73,130.66,19.1331]
[1725246310745,7.6511,130.7,130.66,19.1331]
[1725246311119,7.6505,130.71,130.67,1.53046928]
[1725246311322,8.5380262,130.7,130.66,19.1331]
[1725246311636,7.6505,130.71,130.67,1.53040196]
[1725246311838,0.8869262,130.7,130.66,26.7864]
[1725246312021,8.5380262,130.7,130.66,26.7864]
[1725246312222,8.5380262,130.7,130.66,19.1331]
[1725246312617,7.6517,130.69,130.63,26.7922]
[1725246312928,7.6517,130.69,130.64,7.6546]
[1725246313539,7.6523,130.68,130.63,26.7927]
[1725246313744,8.5403262,130.67,130.62,7.6557]
[1725246313941,7.6534,130.67,130.62,7.6557]
[1725246314125,0.8869262,130.66,130.62,7.6557]
[1725246314630,7.6534,130.67,130.63,1.53089765]
[1725246315021,7.6534,130.67,130.62,7.6557]
[1725246315443,8.5391262,130.69,130.63,1.53076646]
[1725246316342,0.8869262,130.69,130.63,1.53076646]
[1725246316537,7.6512,130.7,130.65,7.6539]
[1725246316538,8.5381262,130.7,130.65,7.6539]
[1725246316736,7.6517,130.69,130.64,7.6545]
[1725246316934,0.8869262,130.68,130.64,7.6545]
[1725246317624,8.5392262,130.68,130.63,7.655]
[1725246317830,7.6523,130.68,130.63,7.655]
[1725246318326,0.8869262,130.67,130.63,7.655]
[1725246318524,0.8869262,130.67,130.62,19.1381]
[1725246318714,7.6529,130.67,130.62,26.7933]
[1725246319044,7.6523,130.68,130.63,7.655]
[1725246319541,0.8869262,130.67,130.63,7.655]
[1725246320137,0.8869262,130.67,130.61,7.6558]
[1725246320439,0.8869262,130.67,130.6,7.6568]
[1725246320648,7.654,130.65,130.6,7.6568]
[1725246321540,0.8869262,130.64,130.6,7.6568]
[1725246322233,0.8869262,130.67,130.59,19.1431]
[1725246322434,0.8869262,130.67,130.61,19.1402]
[1725246322627,0.8869262,130.67,130.62,1.53076254]
[1725246322943,8.5398262,130.67,130.62,7.6556]
[1725246323351,7.6529,130.67,130.62,7.6556]
[1725246323635,8.5404262,130.66,130.61,26.7965]
[1725246324543,0.8869262,130.65,130.61,26.7965]
[1725246325041,39.40903673,130.66,130.58,19.1446]
[1725246325246,8.5410262,130.65,130.6,7.6569]
[1725246325564,8.5410262,130.65,130.61,7.6562]
[1725246329632,0.8869262,130.64,130.6,19.1418]
[1725246329834,0.8869262,130.64,130.6,26.7986]
[1725246330036,0.8869262,130.64,130.6,19.1418]
[1725246330439,7.6552,130.63,130.58,7.658]
[1725246330642,0.8869262,130.62,130.58,7.658]
[1725246331025,8.5428262,130.62,130.58,7.658]
[1725246331929,6.5569,130.63,130.59,1.5313975]
[1725246332140,6.5569,130.63,130.59,7.6573]
[1725246332341,7.4438262,130.63,130.59,7.6573]
[1725246332547,7.6558,130.62,130.58,7.6579]
[1725246332731,0.8869262,130.61,130.58,7.6579]
[1725246332942,8.5427262,130.62,130.58,7.6579]
[1725246333545,7.6566,130.61,130.57,19.146]
[1725246333747,0.8869262,130.6,130.57,19.146]
[1725246334451,0.8869262,130.6,130.57,26.8046]
[1725246334759,8.5441262,130.6,130.55,7.6596]
[1725246334951,8.5441262,130.6,130.54,57.4511]
[1725246334952,7.6565,130.61,130.56,7.6591]
[1725246335146,7.6565,130.61,130.57,9.19022042]
[1725246335348,0.8869262,130.62,130.57,1.53162042]
[1725246335546,0.8869262,130.62,130.58,7.658]
[1725246335760,7.6564,130.61,130.57,7.6585]
[1725246336050,0.8869262,130.6,130.57,7.6585]
[1725246336557,0.8869262,130.6,130.56,19.1477]
[1725246336558,7.6575,130.59,130.56,19.1477]
[1725246336750,8.5439262,130.6,130.56,26.8069]
[1725246337449,0.8869262,130.6,130.56,26.8069]
[1725246337664,39.40903673,130.62,130.57,1.53158592]
[1725246337665,0.8869262,130.62,130.57,1.53158592]
[1725246337832,0.8869262,130.63,130.58,20.67614057]
[1725246338025,0.8869262,130.63,130.59,9.18823601]
[1725246338446,0.8869262,130.63,130.59,7.657]
[1725246339859,0.8869262,130.66,130.61,7.6563]
[1725246340056,7.6541,130.65,130.61,7.6563]
[1725246340264,6.5851,130.67,130.62,20.66978576]
[1725246340556,6.5851,130.67,130.64,26.7902]
[1725246340557,7.4720262,130.67,130.64,26.7902]
[1725246341557,6.5851,130.67,130.64,26.7902]
[1725246341765,6.5851,130.67,130.64,19.1357]
[1725246341936,46.88106293,130.67,130.59,7.6574]
[1725246342141,46.88106293,130.67,130.55,39.40903673]
[1725246342142,7.6559,130.62,130.57,7.6584]
[1725246342338,0.8869262,130.61,130.55,19.1489]
[1725246342542,8.5437262,130.61,130.56,7.6592]
[1725246344959,8.5437262,130.61,130.47,293.1217]
[1725246344960,7.6577,130.59,130.54,7.6603]
[1725246345263,0.8869262,130.58,130.54,7.6603]
[1725246345446,0.8869262,130.58,130.49,39.40903673]
[1725246345659,0.8869262,130.59,130.55,7.6597]
[1725246346187,0.8869262,130.6,130.58,7.6581]
[1725246346344,8.5433262,130.61,130.57,9.19009587]
[1725246346534,39.40903673,130.65,130.58,1.53139512]
[1725246346535,0.8869262,130.64,130.58,1.53139512]
[1725246346957,0.8869262,130.64,130.56,19.1472]
[1725246347143,0.8869262,130.64,130.6,7.6567]
[1725246347345,0.8869262,130.64,130.62,7.6556]
[1725246347551,16.2233262,130.65,130.61,7.6562]
[1725246347753,0.8869262,130.66,130.62,7.6557]
[1725246348063,0.8869262,130.66,130.61,7.6562]
[1725246349238,0.8869262,130.66,130.62,7.6557]
[1725246350353,7.6529,130.67,130.62,7.6557]
[1725246350870,0.8869262,130.66,130.62,7.6557]
[1725246351185,0.8869262,130.66,130.6,26.798]
[1725246351372,8.5391262,130.69,130.62,7.6556]
[1725246351661,8.5391262,130.69,130.63,1.53066573]
[1725246351865,7.6525,130.68,130.63,1.53066573]
[1725246352066,7.653,130.67,130.62,7.6556]
[1725246352364,8.5387262,130.69,130.63,7.655]
[1725246352554,7.6518,130.69,130.64,1.53055397]
[1725246353067,8.5385262,130.7,130.64,9.18506374]
[1725246353361,7.6518,130.69,130.64,7.6545]
[1725246354155,7.6523,130.68,130.64,7.6545]
[1725246355155,0.8869262,130.67,130.62,26.794]
[1725246355363,58.53403673,130.72,130.62,26.794]
[1725246355364,39.40903673,130.7,130.62,26.794]
[1725246355540,0.8869262,130.69,130.62,26.794]
[1725246356065,7.6545,130.65,130.6,7.6564]
[1725246356562,7.6546,130.64,130.59,7.6573]
[1725246357961,7.6553,130.63,130.58,26.802]
[1725246359168,7.6559,130.62,130.58,26.802]